[Event "Early-Titled-Tuesday-Blitz-June-18-2024"]
[Site "Chess.com"]
[Date "2024.06.18"]
[Round "3"]
[White "gafkens"]
[Black "unbreakablepawn35"]
[Result "1-0"]
[WhiteElo "2618"]
[BlackElo "2391"]
[TimeControl "180+1"]
[EndTime "8:28:37 PDT"]
[Termination "gafkens won by resignation"]

1. e4 {[%clk 0:03:00.9]} 1... d5 {[%clk 0:02:58.4]} 2. exd5 {[%clk 0:03:00.3]}
2... Qxd5 {[%clk 0:02:59.3]} 3. Nc3 {[%clk 0:03:00.2]} 3... Qd8 {[%clk
0:02:59.8]} 4. Nf3 {[%clk 0:02:59.4]} 4... Nf6 {[%clk 0:03:00.4]} 5. d4 {[%clk
0:02:58.4]} 5... a6 {[%clk 0:02:55.2]} 6. Be2 {[%clk 0:02:54.5]} 6... b5 {[%clk
0:02:54.8]} 7. Ne5 {[%clk 0:02:51]} 7... Bb7 {[%clk 0:02:53.9]} 8. Bf3 {[%clk
0:02:47]} 8... Qc8 {[%clk 0:02:53.7]} 9. O-O {[%clk 0:02:42.9]} 9... e6 {[%clk
0:02:51.8]} 10. Bg5 {[%clk 0:02:27.6]} 10... Be7 {[%clk 0:02:42.9]} 11. Re1
{[%clk 0:02:20.7]} 11... Nbd7 {[%clk 0:02:33.2]} 12. Nc6 {[%clk 0:02:11]} 12...
h6 {[%clk 0:02:07.6]} 13. Nxe7 {[%clk 0:02:08.1]} 13... Kxe7 {[%clk 0:02:08.1]}
14. Bh4 {[%clk 0:02:07.5]} 14... g5 {[%clk 0:02:03.6]} 15. Bg3 {[%clk
0:02:06.7]} 15... Nb6 {[%clk 0:02:03.9]} 16. Qe2 {[%clk 0:01:39.7]} 16... Rd8
{[%clk 0:01:59.8]} 17. Rad1 {[%clk 0:01:39.2]} 17... Nbd5 {[%clk 0:01:56.8]} 18.
Ne4 {[%clk 0:01:36.7]} 18... Nxe4 {[%clk 0:01:53.4]} 19. Bxe4 {[%clk 0:01:36.9]}
19... Nf6 {[%clk 0:01:49.9]} 20. Bf3 {[%clk 0:01:33.4]} 20... Bd5 {[%clk
0:01:47.3]} 21. b3 {[%clk 0:01:32.5]} 21... Qb7 {[%clk 0:01:46.4]} 22. Bxd5
{[%clk 0:01:28.5]} 22... Nxd5 {[%clk 0:01:32.4]} 23. Rd2 {[%clk 0:01:28.3]}
23... b4 {[%clk 0:01:24.9]} 24. h4 {[%clk 0:01:23.4]} 24... Nc3 {[%clk
0:01:12.7]} 25. Qh5 {[%clk 0:01:21]} 25... Qd5 {[%clk 0:01:09.3]} 26. Qxh6
{[%clk 0:01:19.4]} 26... Rh8 {[%clk 0:01:07.7]} 27. Qxg5+ {[%clk 0:01:18.7]}
27... Qxg5 {[%clk 0:01:07.8]} 28. hxg5 {[%clk 0:01:19.6]} 28... Nd5 {[%clk
0:01:06.1]} 29. Be5 {[%clk 0:01:16.3]} 29... Rh5 {[%clk 0:01:05.5]} 30. f4
{[%clk 0:01:16.5]} 30... Rg8 {[%clk 0:00:58]} 31. Kf2 {[%clk 0:01:15.8]} 31...
f6 {[%clk 0:00:56.9]} 32. gxf6+ {[%clk 0:01:14]} 32... Nxf6 {[%clk 0:00:57.8]}
33. Bxf6+ {[%clk 0:01:10.9]} 33... Kxf6 {[%clk 0:00:58.1]} 34. Re5 {[%clk
0:01:07.4]} 34... Rh4 {[%clk 0:00:53.4]} 35. Kf3 {[%clk 0:01:07.4]} 35... Rh1
{[%clk 0:00:49.7]} 36. d5 {[%clk 0:00:52.3]} 36... Rf1+ {[%clk 0:00:44.2]} 37.
Rf2 {[%clk 0:00:51.9]} 37... Rxf2+ {[%clk 0:00:38.8]} 38. Kxf2 {[%clk
0:00:52.8]} 38... exd5 {[%clk 0:00:38.9]} 39. Rxd5 {[%clk 0:00:53.3]} 39... Re8
{[%clk 0:00:34.5]} 40. Rc5 {[%clk 0:00:51.2]} 1-0

[Event "Early-Titled-Tuesday-Blitz-June-18-2024"]
[Site "Chess.com"]
[Date "2024.06.18"]
[Round "3"]
[White "chess_peak"]
[Black "HouseOfDurin"]
[Result "1-0"]
[WhiteElo "2516"]
[BlackElo "2294"]
[TimeControl "180+1"]
[EndTime "8:28:38 PDT"]
[Termination "chess_peak won by resignation"]

1. d4 {[%clk 0:03:00.9]} 1... Nf6 {[%clk 0:02:59.3]} 2. c4 {[%clk 0:03:01.1]}
2... c5 {[%clk 0:02:59]} 3. Nf3 {[%clk 0:02:58.3]} 3... cxd4 {[%clk 0:02:58.7]}
4. Nxd4 {[%clk 0:02:58.6]} 4... g6 {[%clk 0:02:59.6]} 5. g3 {[%clk 0:02:58.4]}
5... Bg7 {[%clk 0:03:00.2]} 6. Bg2 {[%clk 0:02:58.9]} 6... O-O {[%clk
0:03:00.7]} 7. O-O {[%clk 0:02:59.1]} 7... Nc6 {[%clk 0:03:01.3]} 8. Nc2 {[%clk
0:02:57.3]} 8... e6 {[%clk 0:02:58.1]} 9. Nc3 {[%clk 0:02:57]} 9... b6 {[%clk
0:02:55.8]} 10. b3 {[%clk 0:02:53.6]} 10... Bb7 {[%clk 0:02:46.3]} 11. Ba3
{[%clk 0:02:52.8]} 11... Ne7 {[%clk 0:02:38]} 12. Bxb7 {[%clk 0:02:48.6]} 12...
Rb8 {[%clk 0:02:38]} 13. Bg2 {[%clk 0:02:47.2]} 13... Re8 {[%clk 0:02:36.5]} 14.
Qd2 {[%clk 0:02:42.2]} 14... d5 {[%clk 0:02:36.2]} 15. cxd5 {[%clk 0:02:30.9]}
15... Nexd5 {[%clk 0:02:35.5]} 16. Nxd5 {[%clk 0:02:31]} 16... Nxd5 {[%clk
0:02:35.6]} 17. Rad1 {[%clk 0:02:30.8]} 17... Nc3 {[%clk 0:02:20.9]} 18. Qxd8
{[%clk 0:02:01.8]} 18... Nxe2+ {[%clk 0:02:20.3]} 19. Kh1 {[%clk 0:02:02.4]}
19... Rexd8 {[%clk 0:02:20.9]} 20. Be7 {[%clk 0:01:54.4]} 20... Rxd1 {[%clk
0:02:16.4]} 21. Rxd1 {[%clk 0:01:55.3]} 21... Nc3 {[%clk 0:02:16]} 22. Rd7
{[%clk 0:01:55]} 22... a5 {[%clk 0:02:03]} 23. a3 {[%clk 0:01:46]} 23... a4
{[%clk 0:01:49.6]} 24. bxa4 {[%clk 0:01:44.9]} 24... Nxa4 {[%clk 0:01:48.9]} 25.
h4 {[%clk 0:01:41.5]} 25... Rc8 {[%clk 0:01:48.3]} 26. Ne3 {[%clk 0:01:39.1]}
26... Bb2 {[%clk 0:01:45.7]} 27. Bb4 {[%clk 0:01:25.2]} 27... Kg7 {[%clk
0:01:40.9]} 28. Kh2 {[%clk 0:01:24.2]} 28... Bc3 {[%clk 0:01:30.4]} 29. Bb7
{[%clk 0:01:21.6]} 29... Rb8 {[%clk 0:00:57.9]} 30. Bxc3+ {[%clk 0:01:21.3]}
30... Nxc3 {[%clk 0:00:57.7]} 31. Nc4 {[%clk 0:01:21.8]} 31... Nb5 {[%clk
0:00:44.2]} 32. a4 {[%clk 0:01:10]} 32... Nd4 {[%clk 0:00:19.9]} 33. Nxb6 {[%clk
0:01:02.6]} 33... Nf5 {[%clk 0:00:18.1]} 34. a5 {[%clk 0:01:00.7]} 34... e5
{[%clk 0:00:16.3]} 35. a6 {[%clk 0:01:00]} 35... Nd4 {[%clk 0:00:14.7]} 36. a7
{[%clk 0:00:59.1]} 36... Rxb7 {[%clk 0:00:14.5]} 37. Rxb7 {[%clk 0:00:59]} 1-0

[Event "Early-Titled-Tuesday-Blitz-June-18-2024"]
[Site "Chess.com"]
[Date "2024.06.18"]
[Round "3"]
[White "Weifd"]
[Black "Emp3rador"]
[Result "0-1"]
[WhiteElo "2406"]
[BlackElo "2624"]
[TimeControl "180+1"]
[EndTime "8:28:46 PDT"]
[Termination "Emp3rador won by resignation"]

1. e4 {[%clk 0:02:59.6]} 1... e6 {[%clk 0:02:53]} 2. d4 {[%clk 0:02:58.5]} 2...
d5 {[%clk 0:02:53.5]} 3. Nd2 {[%clk 0:02:58.1]} 3... dxe4 {[%clk 0:02:53.2]} 4.
Nxe4 {[%clk 0:02:57.6]} 4... Nd7 {[%clk 0:02:54.1]} 5. Nf3 {[%clk 0:02:56.2]}
5... Ngf6 {[%clk 0:02:54.5]} 6. Bd3 {[%clk 0:02:56]} 6... Nxe4 {[%clk
0:02:51.4]} 7. Bxe4 {[%clk 0:02:55.2]} 7... Nf6 {[%clk 0:02:52]} 8. Bd3 {[%clk
0:02:55.5]} 8... b6 {[%clk 0:02:48.8]} 9. O-O {[%clk 0:02:55]} 9... Bb7 {[%clk
0:02:47.8]} 10. c3 {[%clk 0:02:55]} 10... Be7 {[%clk 0:02:46.8]} 11. Bg5 {[%clk
0:02:53]} 11... O-O {[%clk 0:02:46.4]} 12. Qe2 {[%clk 0:02:50.8]} 12... c5
{[%clk 0:02:42.8]} 13. Rfd1 {[%clk 0:02:41.8]} 13... Qc7 {[%clk 0:02:40.7]} 14.
Bxf6 {[%clk 0:02:28.8]} 14... Bxf6 {[%clk 0:02:39.3]} 15. Be4 {[%clk 0:02:29.5]}
15... Rad8 {[%clk 0:02:36.6]} 16. Bxb7 {[%clk 0:02:27.5]} 16... Qxb7 {[%clk
0:02:37.5]} 17. dxc5 {[%clk 0:02:26.5]} 17... bxc5 {[%clk 0:02:36.3]} 18. h3
{[%clk 0:02:20.6]} 18... h6 {[%clk 0:02:34]} 19. Rab1 {[%clk 0:02:04.5]} 19...
Rd5 {[%clk 0:02:29.5]} 20. c4 {[%clk 0:01:36.2]} 20... Rxd1+ {[%clk 0:02:24.2]}
21. Qxd1 {[%clk 0:01:36.2]} 21... Qe4 {[%clk 0:02:15.1]} 22. b3 {[%clk
0:01:29.1]} 22... Rd8 {[%clk 0:02:13.6]} 23. Qe1 {[%clk 0:01:29.1]} 23... Qc2
{[%clk 0:02:10.4]} 24. a3 {[%clk 0:00:51.8]} 24... Qa2 {[%clk 0:02:07.5]} 25.
Qc1 {[%clk 0:00:40.9]} 25... Rd3 {[%clk 0:02:03.3]} 26. b4 {[%clk 0:00:38.8]}
26... Rc3 {[%clk 0:01:47.3]} 27. Qe1 {[%clk 0:00:37.6]} 27... Qxc4 {[%clk
0:01:38]} 28. bxc5 {[%clk 0:00:28]} 28... Qxc5 {[%clk 0:01:36]} 29. Qe4 {[%clk
0:00:20.6]} 29... g6 {[%clk 0:01:28]} 30. a4 {[%clk 0:00:17.6]} 30... Rc2 {[%clk
0:01:24.6]} 31. Rf1 {[%clk 0:00:16.4]} 31... Rc4 {[%clk 0:01:21.9]} 32. Qa8+
{[%clk 0:00:13.4]} 32... Kg7 {[%clk 0:01:20.6]} 33. Qe8 {[%clk 0:00:09.4]} 33...
Qc6 {[%clk 0:01:18.1]} 34. Qxc6 {[%clk 0:00:06.8]} 34... Rxc6 {[%clk 0:01:17.5]}
35. Rb1 {[%clk 0:00:06.6]} 35... Rc4 {[%clk 0:01:15.8]} 36. a5 {[%clk
0:00:05.9]} 36... Rc5 {[%clk 0:01:15.5]} 37. a6 {[%clk 0:00:02.6]} 37... Rc6
{[%clk 0:01:15.2]} 0-1

[Event "Early-Titled-Tuesday-Blitz-June-18-2024"]
[Site "Chess.com"]
[Date "2024.06.18"]
[Round "3"]
[White "TheBigBoss04"]
[Black "EvgenyBurmakin"]
[Result "1-0"]
[WhiteElo "2809"]
[BlackElo "2396"]
[TimeControl "180+1"]
[EndTime "8:28:47 PDT"]
[Termination "TheBigBoss04 won by resignation"]

1. Nf3 {[%clk 0:03:00.9]} 1... c5 {[%clk 0:02:58.5]} 2. e4 {[%clk 0:02:57.2]}
2... d6 {[%clk 0:02:58.6]} 3. Bc4 {[%clk 0:02:53.6]} 3... Nc6 {[%clk 0:02:56.4]}
4. d3 {[%clk 0:02:50]} 4... e6 {[%clk 0:02:54.8]} 5. O-O {[%clk 0:02:49]} 5...
a6 {[%clk 0:02:54.7]} 6. a4 {[%clk 0:02:48.2]} 6... Nf6 {[%clk 0:02:49.7]} 7.
Re1 {[%clk 0:02:46.8]} 7... Be7 {[%clk 0:02:49]} 8. c3 {[%clk 0:02:39.5]} 8...
O-O {[%clk 0:02:48.5]} 9. Bb3 {[%clk 0:02:33.1]} 9... Bd7 {[%clk 0:02:46.9]} 10.
Nbd2 {[%clk 0:02:26.5]} 10... b5 {[%clk 0:02:46.4]} 11. d4 {[%clk 0:02:23.5]}
11... cxd4 {[%clk 0:02:41.9]} 12. cxd4 {[%clk 0:02:23.1]} 12... Nb4 {[%clk
0:02:11.5]} 13. e5 {[%clk 0:02:09.4]} 13... Nfd5 {[%clk 0:01:56.5]} 14. Ne4
{[%clk 0:02:05.8]} 14... dxe5 {[%clk 0:01:39.3]} 15. Nxe5 {[%clk 0:02:01.4]}
15... Be8 {[%clk 0:01:08.4]} 16. Nc5 {[%clk 0:01:42.2]} 16... Qc7 {[%clk
0:00:55.3]} 17. axb5 {[%clk 0:01:35.7]} 17... Bxc5 {[%clk 0:00:44.9]} 18. dxc5
{[%clk 0:01:33.2]} 18... Qxc5 {[%clk 0:00:45.8]} 19. bxa6 {[%clk 0:01:15.7]}
19... Bb5 {[%clk 0:00:38.4]} 20. Qg4 {[%clk 0:01:06.1]} 20... Nf6 {[%clk
0:00:20.6]} 21. Qg3 {[%clk 0:01:00.6]} 21... Rxa6 {[%clk 0:00:20.4]} 22. Rxa6
{[%clk 0:00:55.5]} 22... Bxa6 {[%clk 0:00:20.8]} 23. Bh6 {[%clk 0:00:48.7]}
23... Nh5 {[%clk 0:00:20.2]} 24. Qg4 {[%clk 0:00:48.6]} 24... Nd3 {[%clk
0:00:12.3]} 25. Nxd3 {[%clk 0:00:43.7]} 25... Bxd3 {[%clk 0:00:13.2]} 26. Be3
{[%clk 0:00:34.8]} 26... Qb4 {[%clk 0:00:12.8]} 27. Qxb4 {[%clk 0:00:34.5]} 1-0

[Event "Early-Titled-Tuesday-Blitz-June-18-2024"]
[Site "Chess.com"]
[Date "2024.06.18"]
[Round "3"]
[White "TheAlienParty"]
[Black "Schattman"]
[Result "1/2-1/2"]
[WhiteElo "2330"]
[BlackElo "2513"]
[TimeControl "180+1"]
[EndTime "8:28:47 PDT"]
[Termination "Game drawn by stalemate"]

1. c4 {[%clk 0:02:58.8]} 1... e6 {[%clk 0:02:59.4]} 2. Nf3 {[%clk 0:02:57.3]}
2... d5 {[%clk 0:03:00]} 3. e3 {[%clk 0:02:57.7]} 3... Nf6 {[%clk 0:02:59.6]} 4.
b3 {[%clk 0:02:57.9]} 4... Be7 {[%clk 0:02:54.1]} 5. Bb2 {[%clk 0:02:58]} 5...
b6 {[%clk 0:02:54.6]} 6. Be2 {[%clk 0:02:58.1]} 6... Bb7 {[%clk 0:02:54.3]} 7.
O-O {[%clk 0:02:58.5]} 7... O-O {[%clk 0:02:53.3]} 8. d3 {[%clk 0:02:58.6]} 8...
c5 {[%clk 0:02:52.8]} 9. Nbd2 {[%clk 0:02:58.7]} 9... Nc6 {[%clk 0:02:52.7]} 10.
cxd5 {[%clk 0:02:58.8]} 10... Nxd5 {[%clk 0:02:49.5]} 11. d4 {[%clk 0:02:57.8]}
11... Bf6 {[%clk 0:02:45.5]} 12. e4 {[%clk 0:02:51.3]} 12... Nf4 {[%clk
0:02:43]} 13. e5 {[%clk 0:02:50.9]} 13... Be7 {[%clk 0:02:36.4]} 14. dxc5 {[%clk
0:02:50.5]} 14... Nxe2+ {[%clk 0:02:26.4]} 15. Qxe2 {[%clk 0:02:50.5]} 15...
Bxc5 {[%clk 0:02:26.3]} 16. Rad1 {[%clk 0:02:50.7]} 16... Qc8 {[%clk 0:02:18.3]}
17. Ne4 {[%clk 0:02:50.3]} 17... Ba6 {[%clk 0:02:17.7]} 18. Qc2 {[%clk
0:02:42.4]} 18... h6 {[%clk 0:02:00.3]} 19. Rfe1 {[%clk 0:02:37.8]} 19... Nb4
{[%clk 0:01:54.8]} 20. Qb1 {[%clk 0:02:33.6]} 20... Rd8 {[%clk 0:01:51.6]} 21.
a3 {[%clk 0:02:32.6]} 21... Bd3 {[%clk 0:01:49.5]} 22. Qc1 {[%clk 0:02:28.5]}
22... Bxe4 {[%clk 0:01:41.4]} 23. Rxd8+ {[%clk 0:02:28.4]} 23... Qxd8 {[%clk
0:01:33.3]} 24. Rxe4 {[%clk 0:02:23]} 24... Nd3 {[%clk 0:01:27.2]} 25. Qc2
{[%clk 0:02:07.2]} 25... Nxf2 {[%clk 0:01:16.7]} 26. Re2 {[%clk 0:02:06.8]}
26... Qd1+ {[%clk 0:01:08.6]} 27. Qxd1 {[%clk 0:02:04.8]} 27... Nxd1+ {[%clk
0:01:09.5]} 28. Kh1 {[%clk 0:02:05.3]} 28... Nxb2 {[%clk 0:01:09.6]} 29. Rxb2
{[%clk 0:02:04.8]} 29... Bxa3 {[%clk 0:01:09.7]} 30. Rd2 {[%clk 0:02:03.8]}
30... Rc8 {[%clk 0:01:06.2]} 31. h4 {[%clk 0:02:03]} 31... Rc7 {[%clk
0:01:06.3]} 32. g4 {[%clk 0:02:00.3]} 32... Be7 {[%clk 0:01:02.5]} 33. Kg2
{[%clk 0:01:59.6]} 33... Kf8 {[%clk 0:01:02.4]} 34. h5 {[%clk 0:01:57.1]} 34...
Ke8 {[%clk 0:01:02]} 35. Kg3 {[%clk 0:01:57]} 35... Rc3 {[%clk 0:01:00.5]} 36.
Rb2 {[%clk 0:01:56.4]} 36... a5 {[%clk 0:01:00.3]} 37. Kf4 {[%clk 0:01:56]}
37... Bc5 {[%clk 0:00:58.3]} 38. g5 {[%clk 0:01:54.9]} 38... Be3+ {[%clk
0:00:56]} 39. Kg4 {[%clk 0:01:54]} 39... Bxg5 {[%clk 0:00:53.6]} 40. Nxg5 {[%clk
0:01:53.8]} 40... hxg5 {[%clk 0:00:53.6]} 41. Kxg5 {[%clk 0:01:54.1]} 41... Ke7
{[%clk 0:00:48.9]} 42. b4 {[%clk 0:01:50.4]} 42... a4 {[%clk 0:00:47.6]} 43. b5
{[%clk 0:01:50.4]} 43... a3 {[%clk 0:00:47.5]} 44. Rb4 {[%clk 0:01:49.5]} 44...
f6+ {[%clk 0:00:32.3]} 45. exf6+ {[%clk 0:01:47.5]} 45... gxf6+ {[%clk
0:00:33.2]} 46. Kg6 {[%clk 0:01:48.2]} 46... Rg3+ {[%clk 0:00:32.1]} 47. Kh7
{[%clk 0:01:48.2]} 47... f5 {[%clk 0:00:32.4]} 48. h6 {[%clk 0:01:47.6]} 48...
a2 {[%clk 0:00:25.5]} 49. Ra4 {[%clk 0:01:47.2]} 49... Kd6 {[%clk 0:00:25.1]}
50. Rxa2 {[%clk 0:01:46.8]} 50... Kc5 {[%clk 0:00:23.7]} 51. Kh8 {[%clk
0:01:46.3]} 51... f4 {[%clk 0:00:20.2]} 52. h7 {[%clk 0:01:46]} 52... e5 {[%clk
0:00:19.6]} 53. Rc2+ {[%clk 0:01:45.4]} 53... Kd5 {[%clk 0:00:19.2]} 54. Rd2+
{[%clk 0:01:43.5]} 54... Ke4 {[%clk 0:00:18.4]} 55. Rd4+ {[%clk 0:01:43.3]}
55... Kf5 {[%clk 0:00:17.6]} 56. Rxf4+ {[%clk 0:01:43.3]} 56... exf4 {[%clk
0:00:14.2]} 1/2-1/2

[Event "Early-Titled-Tuesday-Blitz-June-18-2024"]
[Site "Chess.com"]
[Date "2024.06.18"]
[Round "3"]
[White "RamonManon0g"]
[Black "mangochessgo"]
[Result "0-1"]
[WhiteElo "2462"]
[BlackElo "2667"]
[TimeControl "180+1"]
[EndTime "8:28:51 PDT"]
[Termination "mangochessgo won by resignation"]

1. e4 {[%clk 0:03:00.9]} 1... Nf6 {[%clk 0:02:59.9]} 2. e5 {[%clk 0:03:00.1]}
2... Nd5 {[%clk 0:03:00.2]} 3. d4 {[%clk 0:03:01]} 3... d6 {[%clk 0:03:00.6]} 4.
Nf3 {[%clk 0:03:01.9]} 4... dxe5 {[%clk 0:03:00.5]} 5. Nxe5 {[%clk 0:03:01.1]}
5... c6 {[%clk 0:03:01.1]} 6. Bd3 {[%clk 0:02:58.9]} 6... Nd7 {[%clk 0:03:00.3]}
7. O-O {[%clk 0:02:58.5]} 7... g6 {[%clk 0:02:50.3]} 8. Qf3 {[%clk 0:02:47.7]}
8... Nxe5 {[%clk 0:02:46.7]} 9. dxe5 {[%clk 0:02:48.6]} 9... Bg7 {[%clk
0:02:47]} 10. Re1 {[%clk 0:02:48]} 10... O-O {[%clk 0:02:46]} 11. Nd2 {[%clk
0:02:46.8]} 11... Nb4 {[%clk 0:02:39.4]} 12. Be4 {[%clk 0:02:40.8]} 12... Be6
{[%clk 0:02:29.4]} 13. c3 {[%clk 0:02:38.1]} 13... Nd5 {[%clk 0:02:23.4]} 14.
Nc4 {[%clk 0:02:30.8]} 14... b5 {[%clk 0:02:12.1]} 15. Ne3 {[%clk 0:02:30.4]}
15... Bxe5 {[%clk 0:01:58.4]} 16. Nxd5 {[%clk 0:02:30.3]} 16... cxd5 {[%clk
0:01:57]} 17. Bd3 {[%clk 0:02:19.2]} 17... Qc7 {[%clk 0:01:49.6]} 18. Bxb5
{[%clk 0:02:11.6]} 18... Bxh2+ {[%clk 0:01:48.9]} 19. Kh1 {[%clk 0:02:11.9]}
19... Be5 {[%clk 0:01:43.8]} 20. Bh6 {[%clk 0:02:03.8]} 20... Rfb8 {[%clk
0:01:37.1]} 21. Qe2 {[%clk 0:01:42.6]} 21... Bg7 {[%clk 0:01:09.2]} 22. Bg5
{[%clk 0:01:41.2]} 22... a6 {[%clk 0:01:05.4]} 23. Ba4 {[%clk 0:01:37.2]} 23...
d4 {[%clk 0:00:52.9]} 24. cxd4 {[%clk 0:01:28.3]} 24... Qa5 {[%clk 0:00:53.1]}
25. d5 {[%clk 0:01:17]} 25... Bxd5 {[%clk 0:00:48.2]} 26. Bf4 {[%clk 0:01:08.9]}
26... Qxa4 {[%clk 0:00:43.7]} 27. Bxb8 {[%clk 0:01:07.6]} 27... Rxb8 {[%clk
0:00:44.6]} 28. Qxe7 {[%clk 0:01:05.7]} 28... Qg4 {[%clk 0:00:31.3]} 29. f3
{[%clk 0:00:38.3]} 29... Bxf3 {[%clk 0:00:31.4]} 30. gxf3 {[%clk 0:00:29.4]}
30... Qxf3+ {[%clk 0:00:32.3]} 31. Kh2 {[%clk 0:00:26.8]} 31... Rxb2+ {[%clk
0:00:31.8]} 32. Re2 {[%clk 0:00:27.2]} 32... Rxe2+ {[%clk 0:00:31.5]} 0-1

[Event "Early-Titled-Tuesday-Blitz-June-18-2024"]
[Site "Chess.com"]
[Date "2024.06.18"]
[Round "3"]
[White "djano"]
[Black "lagedema"]
[Result "1-0"]
[WhiteElo "2637"]
[BlackElo "2433"]
[TimeControl "180+1"]
[EndTime "8:28:52 PDT"]
[Termination "djano won by resignation"]

1. e4 {[%clk 0:03:00.9]} 1... c5 {[%clk 0:02:58.4]} 2. Nc3 {[%clk 0:03:00.1]}
2... Nc6 {[%clk 0:02:55.4]} 3. Bb5 {[%clk 0:02:59.1]} 3... Nd4 {[%clk
0:02:54.8]} 4. Nf3 {[%clk 0:02:59.4]} 4... Nxb5 {[%clk 0:02:50.5]} 5. Nxb5
{[%clk 0:03:00.3]} 5... a6 {[%clk 0:02:50]} 6. Nc3 {[%clk 0:03:00.5]} 6... d6
{[%clk 0:02:47.2]} 7. d4 {[%clk 0:03:00.6]} 7... cxd4 {[%clk 0:02:45.7]} 8. Qxd4
{[%clk 0:03:01.5]} 8... Nf6 {[%clk 0:02:42.2]} 9. Bg5 {[%clk 0:02:59.7]} 9... e6
{[%clk 0:02:41.8]} 10. O-O-O {[%clk 0:02:59.1]} 10... Be7 {[%clk 0:02:42.5]} 11.
e5 {[%clk 0:02:55.5]} 11... dxe5 {[%clk 0:02:36.6]} 12. Qxe5 {[%clk 0:02:56.4]}
12... Qb6 {[%clk 0:02:29.5]} 13. Ne4 {[%clk 0:02:55.5]} 13... Nxe4 {[%clk
0:02:17.5]} 14. Bxe7 {[%clk 0:02:55.4]} 14... Kxe7 {[%clk 0:02:13.2]} 15. Qxe4
{[%clk 0:02:50.1]} 15... Bd7 {[%clk 0:01:53.9]} 16. Qg4 {[%clk 0:02:37.3]} 16...
Qxf2 {[%clk 0:01:21.3]} 17. Qg5+ {[%clk 0:02:24.7]} 17... Ke8 {[%clk 0:01:14.4]}
18. Rhf1 {[%clk 0:02:12.2]} 18... Qb6 {[%clk 0:01:09.9]} 19. Ne5 {[%clk
0:01:55.3]} 19... f6 {[%clk 0:00:50.8]} 20. Nxd7 {[%clk 0:01:49.5]} 20... fxg5
{[%clk 0:00:27]} 21. Nxb6 {[%clk 0:01:48.4]} 21... Rd8 {[%clk 0:00:26.9]} 22.
Nc4 {[%clk 0:01:43.4]} 22... Ke7 {[%clk 0:00:25.6]} 23. Ne5 {[%clk 0:01:42.3]}
23... Rxd1+ {[%clk 0:00:25.3]} 24. Kxd1 {[%clk 0:01:43.2]} 24... Rd8+ {[%clk
0:00:24]} 25. Ke2 {[%clk 0:01:43.3]} 25... Rd5 {[%clk 0:00:24.6]} 26. Nd3 {[%clk
0:01:40.3]} 26... e5 {[%clk 0:00:24.7]} 27. Ke3 {[%clk 0:01:39.7]} 27... Ra5
{[%clk 0:00:24.3]} 28. a3 {[%clk 0:01:38.2]} 28... Ke6 {[%clk 0:00:24.5]} 29.
Rf8 {[%clk 0:01:37.9]} 29... Rd5 {[%clk 0:00:24.1]} 30. Re8+ {[%clk 0:01:37.2]}
30... Kf6 {[%clk 0:00:24.6]} 31. c4 {[%clk 0:01:34.3]} 31... Rd6 {[%clk
0:00:19.3]} 32. Nxe5 {[%clk 0:01:28.6]} 32... Rd1 {[%clk 0:00:14.8]} 33. Nd3
{[%clk 0:01:28.1]} 33... Rg1 {[%clk 0:00:13.4]} 34. Kf2 {[%clk 0:01:27.8]} 34...
Rh1 {[%clk 0:00:13.8]} 35. h3 {[%clk 0:01:26.9]} 35... h5 {[%clk 0:00:14.5]} 36.
c5 {[%clk 0:01:24.5]} 36... Rd1 {[%clk 0:00:14.5]} 37. Ke2 {[%clk 0:01:23.6]}
37... Rg1 {[%clk 0:00:14.5]} 38. Ne1 {[%clk 0:01:19.4]} 38... g4 {[%clk
0:00:09.9]} 39. hxg4 {[%clk 0:01:20]} 39... h4 {[%clk 0:00:10.4]} 40. Rb8 {[%clk
0:01:17]} 40... Rh1 {[%clk 0:00:06.8]} 41. Rxb7 {[%clk 0:01:14.7]} 41... h3
{[%clk 0:00:07.7]} 42. gxh3 {[%clk 0:01:14]} 42... Rxh3 {[%clk 0:00:06.7]} 43.
c6 {[%clk 0:01:14.2]} 43... Rh2+ {[%clk 0:00:07.2]} 44. Kd3 {[%clk 0:01:13.5]}
44... Rxb2 {[%clk 0:00:07.4]} 45. Rxb2 {[%clk 0:01:12.5]} 1-0

[Event "Early-Titled-Tuesday-Blitz-June-18-2024"]
[Site "Chess.com"]
[Date "2024.06.18"]
[Round "3"]
[White "OparinGrigoriy"]
[Black "N18player"]
[Result "1-0"]
[WhiteElo "3057"]
[BlackElo "2545"]
[TimeControl "180+1"]
[EndTime "8:28:55 PDT"]
[Termination "OparinGrigoriy won by resignation"]

1. c4 {[%clk 0:03:00.2]} 1... e6 {[%clk 0:02:58.4]} 2. Nc3 {[%clk 0:03:00.6]}
2... d5 {[%clk 0:02:58.9]} 3. d4 {[%clk 0:03:01.4]} 3... h6 {[%clk 0:02:58.8]}
4. Nf3 {[%clk 0:03:00.6]} 4... Nf6 {[%clk 0:02:59.3]} 5. e3 {[%clk 0:03:00.4]}
5... a6 {[%clk 0:02:44.2]} 6. b3 {[%clk 0:02:58.8]} 6... b6 {[%clk 0:02:43.2]}
7. Bd3 {[%clk 0:02:56.2]} 7... Bb7 {[%clk 0:02:35.6]} 8. O-O {[%clk 0:02:56.3]}
8... Be7 {[%clk 0:02:34.3]} 9. Bb2 {[%clk 0:02:51.4]} 9... O-O {[%clk
0:02:34.4]} 10. cxd5 {[%clk 0:02:50.1]} 10... exd5 {[%clk 0:02:33.9]} 11. Rc1
{[%clk 0:02:48.8]} 11... Nbd7 {[%clk 0:02:33.7]} 12. Ne2 {[%clk 0:02:47.1]}
12... Ne4 {[%clk 0:02:24.1]} 13. Ng3 {[%clk 0:02:46.3]} 13... Nxg3 {[%clk
0:02:19.9]} 14. hxg3 {[%clk 0:02:45.7]} 14... Nf6 {[%clk 0:02:17.7]} 15. Ne5
{[%clk 0:02:43.3]} 15... Bd6 {[%clk 0:02:07.4]} 16. Qe2 {[%clk 0:02:28.6]} 16...
Qe7 {[%clk 0:02:00.7]} 17. Rc2 {[%clk 0:02:27.2]} 17... c5 {[%clk 0:01:51.5]}
18. Ng4 {[%clk 0:02:27.1]} 18... Ne4 {[%clk 0:01:43.8]} 19. dxc5 {[%clk
0:02:27]} 19... bxc5 {[%clk 0:01:26.8]} 20. Rd1 {[%clk 0:02:26.8]} 20... Rfd8
{[%clk 0:01:15]} 21. Nh2 {[%clk 0:02:21.9]} 21... Be5 {[%clk 0:01:05.2]} 22.
Bxe5 {[%clk 0:02:21.3]} 22... Qxe5 {[%clk 0:01:06.1]} 23. Bxe4 {[%clk
0:02:20.1]} 23... dxe4 {[%clk 0:01:03.2]} 24. Rcd2 {[%clk 0:02:18.9]} 24... Rxd2
{[%clk 0:01:01.5]} 25. Qxd2 {[%clk 0:02:19]} 25... a5 {[%clk 0:01:00.2]} 26. Ng4
{[%clk 0:02:12.2]} 26... Qe6 {[%clk 0:00:53.5]} 27. Qd7 {[%clk 0:02:12.3]} 27...
Bc8 {[%clk 0:00:27.8]} 28. Qd8+ {[%clk 0:02:09.9]} 28... Kh7 {[%clk 0:00:27.8]}
29. Nh2 {[%clk 0:02:10.3]} 29... Bb7 {[%clk 0:00:22]} 30. Qc7 {[%clk 0:02:09.7]}
30... Bc8 {[%clk 0:00:09.4]} 31. Qxc5 {[%clk 0:02:06.7]} 31... a4 {[%clk
0:00:09.5]} 32. b4 {[%clk 0:01:56.2]} 32... Qxa2 {[%clk 0:00:02.3]} 33. Qc6
{[%clk 0:01:56.5]} 33... Qb3 {[%clk 0:00:02.1]} 34. Rc1 {[%clk 0:01:30.2]} 34...
Be6 {[%clk 0:00:01.5]} 35. Qxe4+ {[%clk 0:01:27.7]} 35... g6 {[%clk 0:00:01.5]}
36. Qxa8 {[%clk 0:01:27.9]} 36... a3 {[%clk 0:00:02.4]} 37. Nf3 {[%clk 0:01:24]}
37... a2 {[%clk 0:00:02.8]} 38. Qa5 {[%clk 0:01:21.1]} 38... Qb1 {[%clk
0:00:03.2]} 39. Re1 {[%clk 0:01:19.4]} 39... Qb2 {[%clk 0:00:01.8]} 40. b5
{[%clk 0:01:18.5]} 40... Qb1 {[%clk 0:00:01]} 41. b6 {[%clk 0:01:18.9]} 41...
Qb2 {[%clk 0:00:01.6]} 42. Nd4 {[%clk 0:01:16.7]} 42... Bd5 {[%clk 0:00:02]} 43.
Qxd5 {[%clk 0:01:15.3]} 43... a1=Q {[%clk 0:00:02.5]} 44. Qxf7+ {[%clk
0:01:14.4]} 44... Kh8 {[%clk 0:00:02.3]} 45. Rxa1 {[%clk 0:01:14.8]} 45... Qxa1+
{[%clk 0:00:02.8]} 46. Kh2 {[%clk 0:01:15.4]} 1-0